[Event "FRA-ch Teams Top 16-A 2022"]
[Site "Chartres"]
[Date "2022.06.09"]
[Round "1.28"]
[White "Loiseau, Quentin"]
[Black "Vlachos, Anatole"]
[Result "1-0"]
[ECO "C54"]
[WhiteElo "2445"]
[BlackElo "2410"]
[Annotator "TA"]
[PlyCount "81"]
[EventDate "2022.06.09"]
[EventType "team-tourn"]
[EventCountry "FRA"]
[SourceTitle "playchess.com"]
[Source "ChessBase"]
[SourceQuality "1"]
[TimeControl "40/5400+30:1800+30"]

{[%evp 15,81,0,0,0,18,12,5,10,12,0,0,0,25,0,41,39,56,47,66,41,52,42,96,76,176,152,272,79,140,154,210,214,210,223,286,279,411,419,368,384,344,320,496,495,972,1014,946,378,390,363,326,243,283,277,248,155,164,119,965,943,963,900,29984,29985,29995,819,736,688]} 1. e4 {[%emt 0:00:06]} e5 {[%emt 0:00:08]} 2. Nf3 {[%emt 0:00:08]} Nc6 {[%emt 0:00:07]} 3. Bc4 {[%emt 0:00:32]} Bc5 {[%emt 0:00:07]} 4. c3 {[%emt 0:00:28]} Nf6 {[%emt 0:00:06]} 5. d4 {[%emt 0:00:45]} exd4 {[%emt 0:00:05]} 6. e5 {[%emt 0:00:06]} d5 {[%emt 0:00:13]} 7. Bb5 {[%emt 0:00:07]} Ne4 {[%emt 0:00:21]} 8. cxd4 {[%emt 0:00:07]} Bb6 {[%emt 0:00:10]} 9. Nc3 {[%emt 0:00:27] C54: Giuoco Piano: 4 c3 Nf6, main lines with 5 d4 and 5 d3.} Bg4 {[%emt 0:04:26]} 10. Be3 {[%emt 0:01:30]} O-O {[%emt 0:07:21]} 11. h3 {[%emt 0:00:34] The position is equal.} Bh5 {[%emt 0:04:38]} 12. Qc2 {[%emt 0:02:31]} Nxc3 {[%emt 0:10:15] Nowadays more popular than 12...Bg6.} 13. bxc3 {[%emt 0:04:36]} Ne7 {[%emt 0:00:24] [#]} 14. Be2 $146 {[%emt 0:14:31]} ({Predecessor:} 14. Bd3 Bg6 15. O-O Rc8 16. Bxg6 Nxg6 17. Qb3 c5 18. a4 cxd4 19. cxd4 Ne7 20. Bg5 {1-0 (47) Lagno,K (2541)-Yildiz Kadioglu,B (2350) Heraklion 2017}) 14... c6 {[%emt 0:15:01]} 15. O-O {[%emt 0:02:20]} Bc7 {[%emt 0:02:53]} 16. Rae1 {[%emt 0:06:07]} Qd7 {[%emt 0:09:04]} 17. Bf4 {[%emt 0:29:10]} ({Of course not} 17. Ng5 Bg6 18. Bd3 f6 $11) 17... h6 {[%emt 0:15:04]} 18. Qd2 {[%emt 0:13:13]} Bg6 {[%emt 0:03:54]} (18... Ba5 $14) 19. Nh4 $1 $16 {[%emt 0:02:02]} Bh7 {[%emt 0:01:33]} (19... f6 $16) 20. Bg4 $18 {[%emt 0:03:00][%cal Be2g4,Bg4f5,Bf5b1][%mdl 32]} Qd8 {[%emt 0:00:06] [#]} (20... Nf5 $16) 21. Bg3 $2 {[%emt 0:04:04]} (21. Bxh6 $1 $18 {[%mdl 512] and the rest is easy. Bg5 is the strong threat.} Kh8 (21... c5 22. Qg5) 22. Bg5) 21... c5 {[%emt 0:07:46]} (21... f5 $142) 22. dxc5 $16 {[%emt 0:02:54] 0x0.0020788d2740dp-1022s more active pieces. The black rooks are badly placed.} Nc6 {[%emt 0:00:37]} (22... Qe8 $16 23. e6 Bxg3 24. exf7+ (24. fxg3 f5 $16) 24... Rxf7 25. fxg3 Rxf1+ 26. Rxf1 Rd8) 23. Nf5 $18 {[%emt 0:04:53]} Bxf5 {[%emt 0:03:45]} 24. Bxf5 {[%emt 0:00:01]} d4 {[%emt 0:00:44]} 25. Bb1 {[%emt 0:01:47]} Ba5 {[%emt 0:03:40]} (25... Qg5 {is a better defense.} 26. Qd3 Qg6) 26. Qd3 {[%emt 0:01:15][%csl Gb1][%cal Rd3h7]} g6 {[%emt 0:00:08]} 27. e6 {[%emt 0:01:01]} Qf6 {[%emt 0:00:10]} 28. Re4 {[%emt 0:03:14][%cal Rc3d4]} dxc3 {[%emt 0:01:37]} (28... Bxc3 {was necessary.} 29. Bd6 Rfe8 30. exf7+ Qxf7) 29. Bd6 {[%emt 0:01:44]} Rfe8 {[%emt 0:01:41]} (29... Rae8 $142 30. exf7+ Qxf7) 30. exf7+ {[%emt 0:00:31]} Qxf7 {[%emt 0:00:01]} 31. Rg4 $2 {[%emt 0:00:17]} (31. Rf4 Qd7 32. Qd5+ Kh8 33. Rf7) 31... Re6 {[%emt 0:01:33]} 32. a3 {[%emt 0:01:42]} Rf6 {[%emt 0:01:24]} 33. Qc2 {[%emt 0:00:36]} ({Less strong is} 33. Rxg6+ Rxg6 34. Qxg6+ Qxg6 35. Bxg6 Nd4 $14) 33... Kh7 {[%emt 0:00:30]} 34. h4 {[%emt 0:00:36] Black must now prevent h5.} h5 {[%emt 0:04:39]} 35. Re4 {[%emt 0:00:19][%cal Bg4e4,Be4e8,Be8e7][%mdl 32] Threatens to win with Ba2.} Re8 {[%emt 0:00:51]} 36. Rfe1 {[%emt 0:00:37]} Nd4 $2 {[%emt 0:00:52][%mdl 8192] [#] A mistake that costs the game.} 37. Rxe8 $1 {[%emt 0:00:33] Qd1 would kill now.} Nxc2 {[%emt 0:00:02]} 38. Bxc2 {[%emt 0:00:23] aiming for R1e7. This bishop pair is nice.} Qa2 {[%emt 0:03:00]} 39. R1e7+ {[%emt 0:00:14]} Rf7 {[%emt 0:00:00] [#]} 40. Rxf7+ {[%emt 0:00:14]} (40. Be5 $142 $1 Qa1+ 41. Kh2 Qg1+ 42. Kxg1 Rg7 43. Rxg7+ Kh6 44. Rh8#) 40... Qxf7 {[%emt 0:00:06]} 41. Re7 {[%emt 0:30:02] Weighted Error Value: White=0.39/Black=0.55} 1-0

[Event "FRA-ch Teams Top 16-A 2022"]
[Site "Chartres"]
[Date "2022.06.09"]
[Round "1.29"]
[White "Shchekachev, Andrei"]
[Black "Demuth, Adrien"]
[Result "1/2-1/2"]
[ECO "E92"]
[WhiteElo "2508"]
[BlackElo "2493"]
[Annotator "TA"]
[PlyCount "56"]
[EventDate "2022.06.09"]
[EventType "team-tourn"]
[EventCountry "FRA"]
[SourceTitle "playchess.com"]
[Source "ChessBase"]
[SourceQuality "1"]
[TimeControl "40/5400+30:1800+30"]

{[%evp 17,56,0,0,19,10,0,1,0,0,0,0,-31,-19,-63,-52,-69,-64,-68,-56,-90,-82,-97,-89,-81,-83,-98,-66,-79,-75,-85,-56,-61,-64,-60,-47,-54,-52,-60,-48,-65,-2]} 1. Nf3 {[%emt 0:00:12]} Nf6 {[%emt 0:00:12]} 2. c4 {[%emt 0:00:28]} g6 {[%emt 0:00:28]} 3. Nc3 {[%emt 0:00:13]} Bg7 {[%emt 0:00:06]} 4. e4 {[%emt 0:02:09]} d6 {[%emt 0:00:04]} 5. d4 {[%emt 0:00:11]} O-O {[%emt 0:00:05]} 6. Be2 {[%emt 0:04:05]} e5 {[%emt 0:00:10]} 7. d5 {[%emt 0:01:05]} a5 {[%emt 0:00:52]} 8. h3 {[%emt 0:06:35]} Na6 {[%emt 0:05:23]} 9. Be3 {[%emt 0:05:19]} Nh5 $1 {[%emt 0:14:49]} 10. g3 {[%emt 0:01:38] E92: King's Indian: Classical: 6 Be2 e5: 7 dxe5, 7 Be3 and Petrosian System without 7...Nbd7.} f5 {[%emt 0:00:21]} 11. exf5 {[%emt 0:04:37]} gxf5 {[%emt 0:00:20][%cal Bg6f5,Bf5f4][%mdl 32]} 12. Bg5 {[%emt 0:04:20] The position is equal.} Qe8 {[%emt 0:12:49]} 13. Nh4 {[%emt 0:03:46]} Nf6 {[%emt 0:00:03][%cal Of5f4]} 14. g4 {[%emt 0:06:01]} f4 $1 {[%emt 0:13:13]} 15. Nf5 {[%emt 0:05:59] Prevents h6.} Bxf5 {[%emt 0:04:43]} 16. gxf5 {[%emt 0:08:21]} Nc5 $1 {[%emt 0:00:16]} 17. Rg1 {[%emt 0:11:56]} Kh8 $1 {[%emt 0:00:34] [#]} 18. Nb5 $146 {[%emt 0:01:07]} ({Predecessor:} 18. Qc2 e4 19. O-O-O Qe5 20. Kb1 a4 21. a3 Qxf5 22. f3 Rae8 23. Bxf6 Qxf6 24. fxe4 {0-1 (30) Baeckstroem,B (2102)-Palladino,M (2219) ICCF email 2020}) 18... Qd7 {[%emt 0:09:03]} 19. Qc2 {[%emt 0:00:21]} c6 {[%emt 0:07:54]} 20. Nc3 {[%emt 0:04:22]} cxd5 {[%emt 0:03:12]} 21. Bxf6 {[%emt 0:03:49]} Rxf6 {[%emt 0:01:26]} 22. Nxd5 {[%emt 0:00:07]} Qxf5 {[%emt 0:00:34]} (22... Rxf5 $2 23. Nb6 Qf7 24. Nxa8 $18) 23. O-O-O {[%emt 0:01:04]} Rf7 {[%emt 0:09:07]} 24. Qxf5 {[%emt 0:03:01] Black is slightly better.} Rxf5 {[%emt 0:00:03]} 25. Bg4 {[%emt 0:00:27]} Rf7 {[%emt 0:00:08]} 26. f3 {[%emt 0:02:13]} e4 {[%emt 0:03:26]} 27. fxe4 {[%emt 0:02:26]} Nxe4 {[%emt 0:00:07] Hoping for ...f3.} 28. Rgf1 {[%emt 0:05:22]} Nf6 {[%emt 0:08:48] Weighted Error Value: White=0.07 (flawless) /Black=0.02 (flawless)} ({Better is} 28... Be5 $15) 1/2-1/2

[Event "FRA-ch Teams Top 16-A 2022"]
[Site "Chartres"]
[Date "2022.06.09"]
[Round "1.30"]
[White "Wirig, Anthony"]
[Black "Abergel, Thal"]
[Result "0-1"]
[ECO "B40"]
[WhiteElo "2520"]
[BlackElo "2378"]
[Annotator "TA"]
[PlyCount "90"]
[EventDate "2022.06.09"]
[EventType "team-tourn"]
[EventCountry "FRA"]
[SourceTitle "playchess.com"]
[Source "ChessBase"]
[SourceQuality "1"]
[TimeControl "40/5400+30:1800+30"]

{[%evp 9,90,5,20,13,9,23,19,16,18,6,42,19,41,7,18,0,10,8,11,0,0,12,15,0,0,0,7,0,0,0,0,-11,0,-24,0,0,16,0,21,0,2,0,16,-17,-11,-36,-33,-43,0,0,0,-22,0,0,0,-169,-168,-566,-557,-881,-885,-1003,-852,-876,-857,-959,-706,-703,-704,-693,-693,-652,-571,-578,-578,-545,-506,-552,-485,-610,-584,-579,-519]} 1. e4 {[%emt 0:00:56]} c5 {[%emt 0:00:17]} 2. Nf3 {[%emt 0:00:22]} e6 {[%emt 0:00:26]} 3. g3 {[%emt 0:04:25]} Nc6 {[%emt 0:02:30]} 4. Bg2 {[%emt 0:01:35]} Nf6 {[%emt 0:00:38]} 5. Qe2 {[%emt 0:03:33]} d5 {[%emt 0:02:23]} 6. exd5 {[%emt 0:05:32] B40: Sicilian: 2...e6, Unusual lines.} Nxd5 {[%emt 0:00:54]} 7. O-O {[%emt 0:04:05]} Be7 {[%emt 0:00:16]} 8. Rd1 {[%emt 0:02:12] The position is equal.} Qb6 {[%emt 0:05:58]} 9. c3 {[%emt 0:24:52]} Bf6 {[%emt 0:12:27] Against d4} 10. Na3 {[%emt 0:08:14]} O-O {[%emt 0:01:00]} 11. Nc4 {[%emt 0:00:04]} Qa6 {[%emt 0:02:18] [#]} 12. Bf1 $146 {[%emt 0:08:19]} ({Predecessor:} 12. Re1 Bd7 13. d3 Rad8 14. Qc2 b5 15. Nce5 Bxe5 16. Nxe5 Nxe5 17. Rxe5 Qd6 18. Re1 {½-½ (30) Heinemann,T (2501)-Abergel,T (2469) Germany 2019}) 12... b6 {[%emt 0:30:26]} 13. Qe4 {[%emt 0:03:32]} Qb7 {[%emt 0:00:13]} 14. Nd6 {[%emt 0:03:49]} Qe7 {[%emt 0:05:09]} 15. Nxc8 {[%emt 0:02:40]} Raxc8 {[%emt 0:00:21]} 16. d3 {[%emt 0:04:59]} Bxc3 {[%emt 0:04:23]} 17. bxc3 {[%emt 0:00:12]} Nxc3 {[%emt 0:00:09]} 18. Qe1 {[%emt 0:00:34]} ({Not} 18. Bg5 $2 f6 19. Qg4 fxg5 $19) 18... Nxd1 {[%emt 0:00:31]} 19. Qxd1 {[%emt 0:00:05]} Qd6 {[%emt 0:03:40]} 20. Be3 {[%emt 0:02:54]} e5 {[%emt 0:00:48]} 21. Rc1 {[%emt 0:03:50]} h6 {[%emt 0:03:40]} 22. Qb3 {[%emt 0:02:16]} Kh7 {[%emt 0:06:52]} 23. Re1 {[%emt 0:03:28]} Rc7 {[%emt 0:00:47]} 24. Bc1 {[%emt 0:02:12][%cal Od3d4]} Re7 {[%emt 0:00:38]} 25. Bb2 {[%emt 0:00:12]} Nd4 {[%emt 0:03:30]} 26. Bxd4 {[%emt 0:03:20]} exd4 {[%emt 0:00:05]} 27. Rxe7 {[%emt 0:01:26]} Qxe7 {[%emt 0:00:03]} 28. h4 {[%emt 0:00:53]} Qd6 {[%emt 0:04:31]} 29. h5 {[%emt 0:02:49]} Kg8 {[%emt 0:00:12]} 30. Nh4 {[%emt 0:01:03]} Rd8 {[%emt 0:05:47]} 31. Bg2 {[%emt 0:00:25]} Qe6 {[%emt 0:00:44]} 32. Qc2 {[%emt 0:01:02] [#] Against c4} (32. Qxe6 $11 {and White has nothing to worry.} fxe6 33. Kf1) 32... c4 $1 $19 {[%emt 0:00:45]} 33. dxc4 $2 {[%emt 0:00:35]} (33. Be4 {is more resistant.} c3 34. Nf5) 33... Qe1+ {[%emt 0:00:28] Black is clearly winning.} 34. Kh2 {[%emt 0:00:32]} d3 {[%emt 0:00:08]} 35. Qb2 {[%emt 0:00:31]} Qe2 {[%emt 0:01:15]} 36. Qc3 {[%emt 0:00:29]} d2 {[%emt 0:00:47]} 37. Nf5 {[%emt 0:00:31]} Qxh5+ {[%emt 0:00:16]} 38. Bh3 {[%emt 0:00:04]} Qxf5 {[%emt 0:01:11]} 39. Bxf5 {[%emt 0:00:03]} d1=Q {[%emt 0:00:11][%mdl 4096] [#] Endgame Strongly threatening ...Qh5+. KQR-KQB} 40. Kg2 {[%emt 0:00:43]} Qd4 {[%emt 0:00:50]} 41. Qc2 {[%emt 0:30:28]} Re8 {[%emt 0:30:53]} 42. Bh7+ {[%emt 0:00:19]} Kf8 {[%emt 0:01:41]} 43. Bd3 {[%emt 0:00:06]} g6 {[%emt 0:00:26] ...h5 is the strong threat.} 44. Kg1 {[%emt 0:00:00]} Kg7 {[%emt 0:00:00]} 45. Kg2 {[%emt 0:00:00]} h5 {[%emt 0:00:00] Weighted Error Value: White=0.51/Black=0.25 (precise)} 0-1

[Event "FRA-ch Teams Top 16-A 2022"]
[Site "Chartres"]
[Date "2022.06.09"]
[Round "1.31"]
[White "Flom, Gabriel"]
[Black "Barbot, Pierre"]
[Result "0-1"]
[ECO "E32"]
[WhiteElo "2442"]
[BlackElo "2450"]
[Annotator "TA"]
[PlyCount "74"]
[EventDate "2022.06.09"]
[EventType "team-tourn"]
[EventCountry "FRA"]
[SourceTitle "playchess.com"]
[Source "ChessBase"]
[SourceQuality "1"]
[TimeControl "40/5400+30:1800+30"]

{[%evp 10,74,18,0,0,-4,28,0,18,21,16,0,0,0,42,34,54,46,56,47,43,43,112,104,122,94,85,85,88,87,89,93,86,92,95,39,31,-27,-22,-69,-75,-415,-190,-180,-183,-262,-262,-249,-227,-285,-284,-472,-476,-470,-450,-435,-429,-435,-435,-690,-688,-673,-634,-675,-668,-529,-464]} 1. d4 {[%emt 0:00:03]} Nf6 {[%emt 0:00:05]} 2. c4 {[%emt 0:00:04]} e6 {[%emt 0:00:05]} 3. Nc3 {[%emt 0:00:30]} Bb4 {[%emt 0:00:05]} 4. Qc2 {[%emt 0:00:43]} O-O {[%emt 0:00:19]} 5. Nf3 {[%emt 0:00:22]} d6 {[%emt 0:02:45]} 6. Bd2 {[%emt 0:03:23]} b6 {[%emt 0:05:57] E32: Nimzo-Indian: Classical (4 Qc2): 4...0-0.} 7. e4 $1 {[%emt 0:03:39] 7.e3 is vanishing.} e5 {[%emt 0:07:43] [#]} 8. O-O-O $146 {[%emt 0:20:31]} ({Predecessor:} 8. d5 Nh5 9. g3 f5 10. Be2 fxe4 11. Nxe4 Bxd2+ 12. Nfxd2 Nf6 13. O-O Nxe4 14. Nxe4 {0-1 (32) Fier,A (2551)-Wang,H (2718) Sharjah 2019}) 8... Nbd7 {[%emt 0:27:19] The position is equal.} 9. a3 {[%emt 0:06:27]} Bxc3 {[%emt 0:01:33]} 10. Bxc3 {[%emt 0:00:01][%cal Rd4e5]} Qe7 {[%emt 0:01:14]} 11. Re1 {[%emt 0:10:33]} c5 {[%emt 0:03:56]} 12. d5 {[%emt 0:01:03]} Re8 {[%emt 0:01:32]} 13. g3 {[%emt 0:00:12]} Nf8 {[%emt 0:00:49]} 14. Nd2 {[%emt 0:01:17][%cal Bf3d2,Bd2b3,Bb3c5][%mdl 32]} a6 {[%emt 0:02:11]} 15. Rg1 {[%emt 0:02:31]} Qb7 {[%emt 0:02:57]} (15... Ng6 $14) 16. f4 $16 {[%emt 0:01:50]} b5 {[%emt 0:02:15] aiming for ...b4.} 17. fxe5 {[%emt 0:00:22]} dxe5 {[%emt 0:00:12]} 18. Nb3 {[%emt 0:06:36]} Bd7 {[%emt 0:13:16]} 19. Nxc5 {[%emt 0:01:11]} Qb6 {[%emt 0:00:51] [#]} 20. Nxd7 {[%emt 0:01:27]} N8xd7 {[%emt 0:00:06][%cal Bf8d7,Bd7c5,Bc5e4][%mdl 32] [#]} 21. Rg2 {[%emt 0:02:43]} Rec8 {[%emt 0:01:30]} 22. cxb5 {[%emt 0:05:30]} (22. Qf2 $16) 22... axb5 $14 {[%emt 0:00:46]} 23. Qb3 {[%emt 0:01:28]} (23. Kb1 $14) 23... Nxe4 $1 $11 {[%emt 0:02:56][%mdl 64] Decoy} 24. Rxe4 {[%emt 0:09:06]} (24. Rc2 $11 {should be considered.}) 24... Nc5 $1 $15 {[%emt 0:00:05][%csl LRb3,LRe4]} 25. Qxb5 {[%emt 0:00:04][%mdl 8192] Now White is beyond hope.} (25. Qc2 $17 Nxe4 26. Qxe4) 25... Qxb5 {[%emt 0:00:04]} (25... Qh6+ $142 26. Kc2 Nxe4) 26. Bxb5 $19 {[%emt 0:00:06] A strong pair of Bishops.} Nxe4 {[%emt 0:00:03]} 27. Bd7 {[%emt 0:03:32] [#]} (27. Rc2 $142 Nxc3 28. bxc3) 27... Rc5 $1 {[%emt 0:03:14]} ({Weaker is} 27... Nxc3 28. Bxc8 Rxc8 29. bxc3 $11) 28. Bc6 {[%emt 0:00:04]} Ra7 {[%emt 0:01:17]} ({Not} 28... Nxc3 29. Bxa8 Ne2+ 30. Kb1 $16) 29. Rc2 {[%emt 0:07:55]} Nxc3 {[%emt 0:00:07]} 30. Rxc3 {[%emt 0:02:34]} (30. bxc3 Rxa3 31. Kb2) 30... Rxc3+ {[%emt 0:00:05] Black is clearly winning.} 31. bxc3 {[%emt 0:00:01]} Rxa3 {[%emt 0:00:21][%mdl 4096] Endgame KR-KB} 32. Kb2 {[%emt 0:00:01]} Ra5 {[%emt 0:02:09]} 33. Kb3 {[%emt 0:00:08]} Kf8 {[%emt 0:00:59]} 34. c4 {[%emt 0:00:11]} (34. h4 $142) 34... e4 {[%emt 0:02:19][%cal Oa5a2] Threatens to win with ...Ra2!} 35. Kc3 {[%emt 0:00:55]} Ra3+ {[%emt 0:00:13]} 36. Kc2 {[%emt 0:00:11]} Ra2+ {[%emt 0:03:00]} 37. Kd1 {[%emt 0:00:04]} f5 {[%emt 0:01:25] Weighted Error Value: White=0.50/Black=0.23 (precise)} 0-1

[Event "FRA-ch Teams Top 16-A 2022"]
[Site "Chartres"]
[Date "2022.06.09"]
[Round "1.32"]
[White "Milliet, Sophie"]
[Black "Aflalo, Sophie"]
[Result "1-0"]
[ECO "E91"]
[WhiteElo "2410"]
[BlackElo "2152"]
[Annotator "TA"]
[PlyCount "55"]
[EventDate "2022.06.09"]
[EventType "team-tourn"]
[EventCountry "FRA"]
[SourceTitle "playchess.com"]
[Source "ChessBase"]
[SourceQuality "1"]
[TimeControl "40/5400+30:1800+30"]

{[%evp 17,55,33,66,70,81,58,51,54,54,67,61,28,96,104,93,112,148,160,137,155,156,129,143,137,138,132,145,123,162,146,172,172,237,230,240,240,237,220,835,779]} 1. d4 {[%emt 0:00:03]} Nf6 {[%emt 0:00:26]} 2. c4 {[%emt 0:00:04]} g6 {[%emt 0:00:06]} 3. Nc3 {[%emt 0:00:04]} c5 {[%emt 0:00:31]} 4. d5 {[%emt 0:01:58]} d6 {[%emt 0:00:11]} 5. e4 {[%emt 0:01:43]} e6 {[%emt 0:00:11]} 6. Nf3 {[%emt 0:01:11]} exd5 {[%emt 0:03:26]} 7. exd5 {[%emt 0:00:07]} Bg7 {[%emt 0:03:58]} 8. Be2 {[%emt 0:04:45]} O-O {[%emt 0:01:59]} 9. O-O {[%emt 0:00:08]} a6 {[%emt 0:00:59]} 10. h3 {[%emt 0:00:42] [#] E91: King's Indian: Classical: 6 Be2, unusual replies including 6...c5 and 6...Bg4.} Nfd7 $146 {[%emt 0:17:55]} ({Predecessor:} 10... Re8 11. Bd3 Nbd7 12. Bf4 Nh5 13. Bxd6 Qb6 14. Ne4 f5 15. Bxc5 Nxc5 16. Nxc5 Qxc5 17. Rb1 a5 18. b3 Bd7 {0-1 (44) Chernobay,A (2484)-Chasin,N (2297) Chess.com INT 2021}) 11. Bf4 {[%emt 0:04:03]} Ne5 {[%emt 0:00:38]} 12. Nxe5 {[%emt 0:00:22] White is slightly better.} dxe5 {[%emt 0:00:04]} 13. Be3 {[%emt 0:00:18]} b6 {[%emt 0:01:42]} 14. a4 {[%emt 0:07:49][%cal Ba2a4,Ba4a5,Ba5b6][%mdl 32] aiming for a5!} Nd7 {[%emt 0:04:56]} (14... a5 $1 $11 {remains equal.}) 15. a5 $16 {[%emt 0:09:17]} f5 {[%emt 0:09:30]} 16. axb6 {[%emt 0:02:02]} e4 {[%emt 0:02:27]} 17. d6 $1 {[%emt 0:24:30]} Bb7 {[%emt 0:13:43] Against Qd5+. Hoping for ...f4.} 18. Nd5 $36 {[%emt 0:00:43][%cal Ob2b4][%mdl 2048] White is really pushing.} Bxb2 {[%emt 0:05:49]} 19. Rb1 {[%emt 0:00:30]} Be5 {[%emt 0:06:30]} 20. Ne7+ {[%emt 0:03:23]} Kh8 {[%emt 0:03:43] [#]} 21. f4 $1 {[%emt 0:03:05]} Bg7 {[%emt 0:07:49]} 22. Qd2 {[%emt 0:05:37] Black must now prevent Qa5. White is much more active.} a5 {[%emt 0:04:04]} 23. Nd5 {[%emt 0:08:42]} Bxd5 {[%emt 0:04:58]} 24. Qxd5 {[%emt 0:00:03]} Nxb6 {[%emt 0:00:16] [#]} (24... a4 $142) 25. Qc6 $1 $18 {[%emt 0:00:25]} Nd7 {[%emt 0:00:30]} 26. Rb7 {[%emt 0:04:09]} Rf7 {[%emt 0:01:38]} 27. Bxc5 {[%emt 0:04:59] Be3 is the strong threat.} Ra6 $2 {[%emt 0:03:14]} (27... Nb8 28. Qd5 Rxb7 29. Qxb7 Nd7) 28. Rxd7 {[%emt 0:03:21] Weighted Error Value: White=0.05 (flawless) /Black=0.22 (precise)} (28. Qxa6 $2 {too greedy.} Nxc5 29. Rd1 Nxa6 $19) 1-0

[Event "FRA-ch Teams Top 16-A 2022"]
[Site "Chartres"]
[Date "2022.06.10"]
[Round "2.1"]
[White "Abasov, Nijat"]
[Black "Korobov, Anton"]
[Result "1/2-1/2"]
[ECO "B22"]
[WhiteElo "2635"]
[BlackElo "2671"]
[Annotator "TA"]
[PlyCount "56"]
[EventDate "2022.06.09"]
[EventType "team-tourn"]
[EventCountry "FRA"]
[SourceTitle "playchess.com"]
[Source "ChessBase"]
[SourceQuality "1"]
[TimeControl "40/5400+30:1800+30"]

{[%evp 13,34,1,16,14,15,2,7,0,0,-16,-10,-10,0,0,0,0,0,0,0,0,0,0,14]} 1. e4 {[%emt 0:00:04][%cal Be2e4,Be4e5][%mdl 32]} c5 {[%emt 0:00:06]} 2. c3 {[%emt 0:00:05]} Nf6 {[%emt 0:00:22]} 3. e5 {[%emt 0:00:08]} Nd5 {[%emt 0:00:06]} 4. Nf3 {[%emt 0:00:06]} Nc6 {[%emt 0:00:34]} 5. Bc4 {[%emt 0:00:10]} Nb6 {[%emt 0:00:39]} 6. Bb3 {[%emt 0:00:05]} d6 {[%emt 0:00:21]} 7. exd6 {[%emt 0:00:09]} Qxd6 {[%emt 0:00:09] The position is equal.} 8. Na3 {[%emt 0:03:45] B22: Sicilian: 2 c3.} Be6 {[%emt 0:00:24]} 9. O-O {[%emt 0:10:04] Nb5 is the strong threat.} Bxb3 {[%emt 0:00:34]} 10. axb3 {[%emt 0:00:07]} Qd3 {[%emt 0:00:27]} 11. Re1 {[%emt 0:03:08]} e6 {[%emt 0:04:20]} 12. Re3 {[%emt 0:06:25]} Qd7 {[%emt 0:00:24]} 13. Nc4 {[%emt 0:09:53]} Nxc4 {[%emt 0:04:15]} 14. bxc4 {[%emt 0:00:08]} Be7 {[%emt 0:00:10]} 15. d4 {[%emt 0:03:15]} cxd4 {[%emt 0:01:28]} 16. cxd4 {[%emt 0:00:07][%cal Ob2b4]} ({Don't go for} 16. Nxd4 $2 e5 17. Rd3 exd4 $19) 16... O-O {[%emt 0:00:08]} 17. b3 {[%emt 0:01:07]} Rfd8 {[%emt 0:01:40] [#] An uneventful encounter.  Weighted Error Value: White=0.03 (flawless) /Black=0.01 (flawless)} {Predecessor:} 18. Bb2 $146 Bf6 19. Rd3 Nb4 20. Rd2 a5 21. Bc3 b5 22. Qe2 bxc4 23. bxc4 h6 24. Ne5 Qc7 25. Ng4 Be7 26. g3 a4 27. Re1 Rac8 28. Ne3 a3 {½-½ (28) Broniek,M (2264)-Noble,M (2422) LSS email 2008} 1/2-1/2